fUSD/lending_fUSD_20241221
["ID","MTS","AMOUNT","RATE_DAILY","PERIOD"]
[346201854,1734773482249,-500.0,0.00020273,2]
[346201855,1734773482259,-500.0,0.00020273,2]
[346201856,1734773482268,-500.0,0.00020273,2]
[346201857,1734773482279,-3485.33,0.00020273,2]
[346201858,1734773482288,-500.0,0.00020273,2]
[346201859,1734773482298,-500.0,0.00020273,2]
[346201860,1734773482307,-2588.55,0.00020273,2]
[346201861,1734773482317,-500.0,0.00020273,2]
[346201862,1734773482327,-1085.44,0.00020273,2]
[346201863,1734773482337,-500.0,0.00020273,2]
[346201864,1734773482347,-885.13,0.00020273,2]
[346201865,1734773482356,-557.35,0.00020273,2]
[346201866,1734773482366,-1108.63,0.00020273,2]
[346201867,1734773482377,-1207.07,0.00020273,2]
[346201868,1734773482386,-511.81940177,0.00020273,2]
[346201869,1734773482395,-500.0,0.00020273,2]
[346201870,1734773482405,-500.0,0.00020273,2]
[346201871,1734773482414,-4669.83,0.00020273,2]
[346201872,1734773482423,-500.0,0.00020273,2]
[346201873,1734773482432,-3265.96,0.00020273,2]
[346201874,1734773482441,-208.86581316,0.00020273,2]
[346201875,1734773482450,-1587.64,0.00020273,2]
[346201876,1734773482459,-877.61,0.00020273,2]
[346201877,1734773482468,-828.22,0.00020273,2]
[346201878,1734773482477,-500.0,0.00020273,2]
[346201879,1734773482486,-500.0,0.00020273,2]
[346201880,1734773482495,-4399.07,0.00020273,2]
[346201881,1734773482505,-500.0,0.00020273,2]
[346201882,1734773482516,-741.63,0.00020273,2]
[346201883,1734773482528,-500.0,0.00020273,2]
[346201884,1734773482537,-828.21,0.00020273,2]
[346201885,1734773482546,-570.11,0.00020273,2]
[346201886,1734773482555,-500.0,0.00020273,2]
[346201887,1734773482565,-500.0,0.00020273,2]
[346201888,1734773482575,-500.0,0.00020273,2]
[346201889,1734773482584,-500.0,0.00020273,2]
[346201890,1734773482594,-541.73,0.00020273,2]
[346201891,1734773482604,-500.0,0.00020273,2]
[346201892,1734773482613,-500.0,0.00020273,2]
[346201893,1734773482622,-1087.72,0.00020273,2]
[346201894,1734773482632,-500.0,0.00020273,2]
[346201895,1734773482641,-932.89,0.00020273,2]
[346201896,1734773482651,-1129.8,0.00020273,2]
[346201897,1734773482660,-500.0,0.00020273,2]
[346201898,1734773482669,-573.7,0.00020273,2]
[346201899,1734773482678,-1331.05,0.00020273,2]
[346201900,1734773482687,-500.0,0.00020273,2]
[346201901,1734773482697,-1360.88,0.00020273,2]
[346201902,1734773482706,-628.23188841,0.00020273,2]
[346201903,1734773482715,-1044.55,0.00020273,2]
[346201904,1734773482724,-2053.76,0.00020273,2]
[346201905,1734773482733,-500.0,0.00020273,2]
[346201906,1734773482743,-1900.92,0.00020273,2]
[346201907,1734773482752,-1066.83,0.00020273,2]
[346201908,1734773482762,-500.0,0.00020273,2]
[346201909,1734773482773,-500.0,0.00020273,2]
[346201910,1734773482783,-500.0,0.00020273,2]
[346201911,1734773482794,-2895.88,0.00020273,2]
[346201912,1734773482803,-500.0,0.00020273,2]
[346201913,1734773482812,-667.86,0.00020273,2]
[346201914,1734773482822,-2461.23,0.00020273,2]
[346201915,1734773482831,-632.84,0.00020273,2]
[346201916,1734773482840,-2694.25,0.00020273,2]
[346201917,1734773482851,-500.0,0.00020273,2]
[346201918,1734773482860,-1168.89,0.00020273,2]
[346201919,1734773482870,-710.98,0.00020273,2]
[346201920,1734773482879,-4557.64,0.00020273,2]
[346201921,1734773482889,-500.0,0.00020273,2]
[346201922,1734773482898,-729.31,0.00020273,2]
[346201923,1734773482908,-1694.89,0.00020273,2]
[346201924,1734773482917,-682.43,0.00020273,2]
[346201925,1734773482927,-1187.51,0.00020273,2]
[346201926,1734773482936,-1237.16,0.00020273,2]
[346201927,1734773482945,-708.66,0.00020273,2]
[346201928,1734773482954,-765.55,0.00020273,2]
[346201929,1734773482964,-1021.5,0.00020273,2]
[346201930,1734773482973,-545.43,0.00020273,2]
[346201931,1734773482983,-500.0,0.00020273,2]
[346201932,1734773482992,-500.0,0.00020273,2]
[346201933,1734773483005,-621.25,0.00020273,2]
[346201934,1734773483015,-500.0,0.00020273,2]
[346201935,1734773483025,-693.27,0.00020273,2]
[346201936,1734773483035,-336.87327428,0.00020273,2]
[346201937,1734773483044,-2780.15,0.00020273,2]
[346201938,1734773483053,-500.0,0.00020273,2]
[346201939,1734773483062,-784.83,0.00020273,2]
[346201940,1734773483072,-500.0,0.00020273,2]
[346201941,1734773483081,-3200.14,0.00020273,2]
[346201942,1734773483090,-1366.98,0.00020273,2]
[346201943,1734773483099,-500.0,0.00020273,2]
[346201944,1734773483108,-3460.69,0.00020273,2]
[346201945,1734773483117,-500.0,0.00020273,2]
[346201946,1734773483126,-500.0,0.00020273,2]
[346201947,1734773483135,-2823.93,0.00020273,2]
[346201948,1734773483145,-1842.46,0.00020273,2]
[346201949,1734773483155,-790.83,0.00020273,2]
[346201950,1734773483165,-1119.96,0.00020273,2]
[346201951,1734773483174,-981.15,0.00020273,2]
[346201952,1734773483186,-1567.9,0.00020273,2]
[346201953,1734773483199,-871.54,0.00020273,2]
[346201954,1734773483208,-500.0,0.00020273,2]
[346201955,1734773483218,-1851.68,0.00020273,2]
[346201956,1734773483228,-1859.69,0.00020273,2]
[346201957,1734773483242,-1465.88,0.00020273,2]
[346201958,1734773483251,-794.89,0.00020273,2]
[346201959,1734773483261,-1367.48,0.00020273,2]
[346201960,1734773483271,-541.28,0.00020273,2]
[346201961,1734773483282,-3584.85,0.00020273,2]
[346201962,1734773483292,-500.0,0.00020273,2]
[346201963,1734773483301,-500.0,0.00020273,2]
[346201964,1734773483311,-500.0,0.00020273,2]
[346201965,1734773483321,-500.0,0.00020273,2]
[346201966,1734773483331,-2813.95,0.00020273,2]
[346201967,1734773483340,-506.82,0.00020273,2]
[346201968,1734773483350,-572.38,0.00020273,2]
[346201969,1734773483360,-602.78733476,0.00020273,2]
[346201970,1734773483370,-500.0,0.00020273,2]
[346201971,1734773483379,-707.8,0.00020273,2]
[346201972,1734773483388,-3748.8,0.00020273,2]
[346201973,1734773483398,-625.29,0.00020273,2]
[346201974,1734773483407,-500.0,0.00020273,2]
[346201975,1734773483417,-900.78,0.00020273,2]
[346201976,1734773483426,-1109.38,0.00020273,2]
[346201977,1734773483435,-500.0,0.00020273,2]
[346201978,1734773483445,-500.0,0.00020273,2]
[346201979,1734773483454,-1097.85,0.00020273,2]
[346201980,1734773483463,-2789.81,0.00020273,2]
[346201981,1734773483473,-756.9,0.00020273,2]
[346201982,1734773483482,-500.0,0.00020273,2]
[346201983,1734773483491,-930.55,0.00020273,2]
[346201984,1734773483501,-1857.4,0.00020273,2]
[346201985,1734773483511,-500.0,0.00020273,2]
[346201986,1734773483522,-500.0,0.00020273,2]
[346201987,1734773483532,-500.0,0.00020273,2]
[346201988,1734773483542,-909.54,0.00020273,2]
[346201989,1734773483552,-500.0,0.00020273,2]
[346201990,1734773483562,-500.0,0.00020273,2]
[346201991,1734773483572,-1694.4,0.00020273,2]
[346201992,1734773483582,-2292.97,0.00020273,2]
[346201993,1734773483591,-500.0,0.00020273,2]
[346201994,1734773483601,-500.0,0.00020273,2]
[346201995,1734773483611,-911.05,0.00020273,2]
[346201996,1734773483620,-724.3,0.00020273,2]
[346201997,1734773483630,-500.0,0.00020273,2]
[346201998,1734773483641,-2330.29,0.00020273,2]
[346201999,1734773483650,-3781.43,0.00020273,2]
[346202000,1734773483660,-2095.36,0.00020273,2]
[346202001,1734773483669,-1261.37,0.00020273,2]
[346202002,1734773483679,-500.0,0.00020273,2]
[346202003,1734773483689,-500.0,0.00020273,2]
[346202004,1734773483698,-2082.75,0.00020273,2]
[346202005,1734773483707,-991.07,0.00020273,2]
[346202006,1734773483717,-500.0,0.00020273,2]
[346202007,1734773483726,-152.194252,0.00020273,2]
[346202008,1734773483736,-500.0,0.00020273,2]
[346202009,1734773483745,-500.0,0.00020273,2]
[346202010,1734773483755,-500.0,0.00020273,2]
[346202011,1734773483764,-9686.77,0.00020273,2]
[346202012,1734773483778,-151.279847,0.00020273,2]
[346202013,1734773483788,-1882.98,0.00020273,2]
[346202014,1734773483799,-6034.06,0.00020273,2]
[346202015,1734773483809,-500.0,0.00020273,2]
[346202016,1734773483819,-958.49,0.00020273,2]
[346202017,1734773483828,-4702.84,0.00020273,2]
[346202018,1734773483838,-2607.23,0.00020273,2]
[346202019,1734773483848,-500.0,0.00020273,2]
[346202020,1734773483858,-500.0,0.00020273,2]
[346202021,1734773483868,-500.0,0.00020273,2]
[346202022,1734773483878,-1501.37,0.00020273,2]
[346202023,1734773483887,-500.0,0.00020273,2]
[346202024,1734773483897,-500.0,0.00020273,2]
[346202025,1734773483907,-1764.07,0.00020273,2]
[346202026,1734773483917,-5371.31,0.00020273,2]
[346202027,1734773483927,-1482.95,0.00020273,2]
[346202028,1734773483937,-500.0,0.00020273,2]
[346202029,1734773483946,-1579.5,0.00020273,2]
[346202030,1734773483956,-2844.23,0.00020273,2]
[346202031,1734773483965,-849.58,0.00020273,2]
[346202032,1734773483975,-500.0,0.00020273,2]
[346202033,1734773483986,-500.0,0.00020273,2]
[346202034,1734773483996,-764.29,0.00020273,2]
[346202035,1734773484006,-500.0,0.00020273,2]
[346202036,1734773484015,-6231.42,0.00020273,2]
[346202037,1734773484030,-500.0,0.00020273,2]
[346202038,1734773484039,-500.0,0.00020273,2]
[346202039,1734773484049,-2094.42,0.00020273,2]
[346202040,1734773484059,-500.0,0.00020273,2]
[346202041,1734773484069,-151.0,0.00020273,2]
[346202042,1734773484078,-500.0,0.00020273,2]
[346202043,1734773484088,-1010.69,0.00020273,2]
[346202044,1734773484098,-751.14,0.00020273,2]
[346202045,1734773484107,-3462.44,0.00020273,2]
[346202046,1734773484117,-3160.9,0.00020273,2]
[346202047,1734773484126,-151.0,0.00020273,2]
[346202048,1734773484135,-500.0,0.00020273,2]
[346202049,1734773484145,-24645.27,0.00020273,2]
[346202050,1734773484155,-8247.4,0.00020273,2]
[346202051,1734773484164,-2367.12,0.00020273,2]
[346202052,1734773484174,-500.0,0.00020273,2]
[346202053,1734773484184,-151.0,0.00020273,2]
[346202054,1734773484193,-556.23098607,0.00020273,2]
[346202055,1734773484203,-6261.44,0.00020273,2]
[346202056,1734773484213,-1656.5,0.00020273,2]
[346202057,1734773484223,-781.22,0.00020273,2]
[346202058,1734773484234,-500.0,0.00020273,2]
[346202059,1734773484245,-3393.2,0.00020273,2]
[346202060,1734773484255,-500.0,0.00020273,2]
[346202061,1734773484264,-500.0,0.00020273,2]
[346202062,1734773484276,-1460.86,0.00020273,2]
[346202063,1734773484286,-500.0,0.00020273,2]
[346202064,1734773484296,-1877.49,0.00020273,2]
[346202065,1734773484305,-500.0,0.00020273,2]
[346202066,1734773484318,-2708.81,0.00020273,2]
[346202067,1734773484328,-1040.82,0.00020273,2]
[346202068,1734773484337,-1267.07,0.00020273,2]
[346202069,1734773484346,-500.0,0.00020273,2]
[346202070,1734773484356,-767.73,0.00020273,2]
[346202071,1734773484366,-500.0,0.00020273,2]
[346202072,1734773484376,-500.0,0.00020273,2]
[346202073,1734773484386,-562.79,0.00020273,2]
[346202074,1734773484403,-154.14021,0.00020273,2]
[346202075,1734773484414,-8117.57,0.00020273,2]
[346202076,1734773484424,-500.0,0.00020273,2]
[346202077,1734773484433,-1296.7,0.00020273,2]
[346202078,1734773484444,-3164.99,0.00020273,2]
[346202079,1734773484454,-2412.38,0.00020273,2]
[346202080,1734773484464,-500.0,0.00020273,2]
[346202081,1734773484474,-704.84,0.00020273,2]
[346202082,1734773484483,-589.2,0.00020273,2]
[346202083,1734773484493,-2899.73,0.00020273,2]
[346202084,1734773484503,-862.32,0.00020273,2]
[346202085,1734773484512,-500.0,0.00020273,2]
[346202086,1734773484522,-151.0,0.00020273,2]
[346202087,1734773484531,-500.0,0.00020273,2]
[346202088,1734773484541,-500.0,0.00020273,2]
[346202089,1734773484551,-857.89,0.00020273,2]
[346202090,1734773484562,-812.4,0.00020273,2]
[346202091,1734773484572,-500.0,0.00020273,2]
[346202092,1734773484581,-634.56,0.00020273,2]
[346202093,1734773484592,-500.0,0.00020273,2]
[346202094,1734773484602,-768.33,0.00020273,2]
[346202095,1734773484612,-690.88,0.00020273,2]
[346202096,1734773484622,-1896.12,0.00020273,2]
[346202097,1734773484632,-1858.22,0.00020273,2]
[346202098,1734773484641,-500.0,0.00020273,2]
[346202099,1734773484651,-884.99,0.00020273,2]
[346202100,1734773484661,-500.0,0.00020273,2]
[346202101,1734773484671,-279.89129942,0.00020273,2]
[346202102,1734773484681,-188.61141786,0.00020273,2]
[346202103,1734773484692,-500.0,0.00020273,2]
[346202104,1734773484702,-500.0,0.00020273,2]
[346202105,1734773484712,-1376.83,0.00020273,2]
[346202106,1734773484722,-500.0,0.00020273,2]
[346202107,1734773484732,-500.0,0.00020273,2]
[346202108,1734773484742,-151.0,0.00020273,2]
[346202109,1734773484752,-500.0,0.00020273,2]
[346202110,1734773484762,-573.61,0.00020273,2]
[346202111,1734773484773,-500.0,0.00020273,2]
[346202112,1734773484783,-1509.18,0.00020273,2]
[346202113,1734773484792,-500.0,0.00020273,2]
[346202114,1734773484803,-538.56,0.00020273,2]
[346202115,1734773484812,-349.34531334,0.00020291,2]
[346202116,1734773484823,-435.89281425,0.00020299,2]
[346202117,1734773484833,-200.0,0.000203,2]
[346202118,1734773484844,-200.0,0.000203,2]
[346202119,1734773484854,-42645.34083393,0.000203,2]
[346202120,1734773484864,-150.0,0.00020302,4]
[346202121,1734773484874,-1291.0,0.00020332,2]
[346202122,1734773484883,-634.75903018,0.00020368,2]
[346202123,1734773484893,-150.0,0.00020386,4]
[346202124,1734773484903,-5255.78130617,0.00020402,2]
[346202125,1734773484914,-150.0,0.00020406,4]
[346202126,1734773484924,-500.0,0.00020409,2]
[346202127,1734773484934,-150.0,0.00020423,4]
[346202128,1734773484943,-150.0,0.00020469,4]
[346202129,1734773484953,-200.0,0.00020503,2]
[346202130,1734773484963,-200.0,0.00020503,2]
[346202131,1734773484973,-418.32,0.00020546,2]
[346202132,1734773484983,-666.0,0.00020546,2]
[346202133,1734773484993,-432.92301899,0.00020547,2]
[346202134,1734773485003,-500.0,0.00020547,2]
[346202135,1734773485014,-500.0,0.00020547,2]
[346202136,1734773485027,-515.37,0.00020547,2]
[346202137,1734773485038,-500.0,0.00020547,2]
[346202138,1734773485048,-500.0,0.00020547,2]
[346202139,1734773485058,-254.91427254,0.00020547,2]
[346202140,1734773485068,-500.0,0.00020547,2]
[346202141,1734773485078,-549.90924924,0.00020547,2]
[346202142,1734773485088,-500.0,0.00020547,2]
[346202143,1734773485098,-500.0,0.00020547,2]
[346202144,1734773485108,-500.0,0.00020547,2]
[346202145,1734773485118,-500.0,0.00020547,2]
[346202146,1734773485128,-500.0,0.00020547,2]
[346202147,1734773485139,-500.0,0.00020547,2]
[346202148,1734773485149,-500.0,0.00020547,2]
[346202149,1734773485159,-500.0,0.00020547,2]
[346202150,1734773485168,-500.0,0.00020547,2]
[346202151,1734773485178,-500.0,0.00020547,2]
[346202152,1734773485188,-508.51352737,0.00020547,2]
[346202153,1734773485198,-500.0,0.00020547,2]
[346202154,1734773485208,-297.91234098,0.00020547,2]
[346202155,1734773485218,-500.0,0.00020547,2]
[346202156,1734773485228,-500.0,0.00020547,2]
[346202157,1734773485243,-500.0,0.00020547,2]
[346202158,1734773485252,-500.0,0.00020547,2]
[346202159,1734773485262,-500.0,0.00020547,2]
[346202160,1734773485274,-500.0,0.00020547,2]
[346202161,1734773485285,-500.0,0.00020547,2]
[346202162,1734773485295,-500.0,0.00020547,2]
[346202163,1734773485306,-500.0,0.00020547,2]
[346202164,1734773485318,-500.0,0.00020547,2]
[346202165,1734773485545,-500.0,0.00020547,2]
[346202166,1734773485556,-500.0,0.00020547,2]
[346202167,1734773485566,-525.22,0.00020547,2]
[346202168,1734773485576,-500.0,0.00020547,2]
[346202169,1734773485586,-500.0,0.00020547,2]
[346202170,1734773485596,-506.7327713,0.00020547,2]
[346202171,1734773485606,-500.0,0.00020547,2]
[346202172,1734773485616,-500.0,0.00020547,2]
[346202173,1734773485626,-500.0,0.00020547,2]
[346202174,1734773485636,-277.25842213,0.00020547,2]
[346202175,1734773485646,-514.88413288,0.00020547,2]
[346202176,1734773485655,-500.0,0.00020547,2]
[346202177,1734773485666,-500.0,0.00020547,2]
[346202178,1734773485676,-500.0,0.00020547,2]
[346202179,1734773485686,-500.0,0.00020547,2]
[346202180,1734773485696,-500.0,0.00020547,2]
[346202181,1734773485706,-500.0,0.00020547,2]
[346202182,1734773485716,-500.0,0.00020547,2]
[346202183,1734773485726,-500.0,0.00020547,2]
[346202184,1734773485735,-555.37,0.00020547,2]
[346202185,1734773485745,-500.0,0.00020547,2]
[346202186,1734773485755,-500.0,0.00020547,2]
[346202187,1734773485765,-500.0,0.00020547,2]
[346202188,1734773485777,-500.0,0.00020547,2]
[346202189,1734773485787,-500.0,0.00020547,2]
[346202190,1734773485797,-630.18984979,0.00020547,2]
[346202191,1734773485807,-500.0,0.00020547,2]
[346202192,1734773485816,-500.0,0.00020547,2]
[346202193,1734773485826,-500.0,0.00020547,2]
[346202194,1734773485836,-500.0,0.00020547,2]
[346202195,1734773485846,-500.0,0.00020547,2]
[346202196,1734773485856,-500.0,0.00020547,2]
[346202197,1734773485866,-500.0,0.00020547,2]
[346202198,1734773485875,-500.0,0.00020547,2]
[346202199,1734773485884,-500.0,0.00020547,2]
[346202200,1734773485894,-500.0,0.00020547,2]
[346202201,1734773485903,-500.0,0.00020547,2]
[346202202,1734773485913,-650.53,0.00020547,2]
[346202203,1734773485923,-1245.48,0.00020547,2]
[346202204,1734773485933,-601.3,0.00020547,2]
[346202205,1734773485942,-500.0,0.00020547,2]
[346202206,1734773485952,-500.0,0.00020547,2]
[346202207,1734773485961,-586.91,0.00020547,2]
[346202208,1734773485970,-584.9,0.00020547,2]
[346202209,1734773485980,-500.0,0.00020547,2]
[346202210,1734773485989,-500.0,0.00020547,2]
[346202211,1734773485998,-601.62,0.00020547,2]
[346202212,1734773486007,-500.0,0.00020547,2]
[346202213,1734773486017,-912.12,0.00020547,2]
[346202214,1734773486030,-532.02,0.00020547,2]
[346202215,1734773486039,-500.0,0.00020547,2]
[346202216,1734773486049,-384.81141321,0.00020547,2]
[346202217,1734773486058,-500.0,0.00020547,2]
[346202218,1734773486068,-500.0,0.00020547,2]
[346202219,1734773486077,-500.0,0.00020547,2]
[346202220,1734773486086,-500.0,0.00020547,2]
[346202221,1734773486095,-501.86850637,0.00020547,2]
[346202222,1734773486104,-618.06,0.00020547,2]
[346202223,1734773486113,-500.0,0.00020547,2]
[346202224,1734773486124,-500.0,0.00020547,2]
[346202225,1734773486133,-543.65,0.00020547,2]
[346202226,1734773486143,-163.45637498,0.00020547,2]
[346202227,1734773486152,-505.88649312,0.00020547,2]
[346202228,1734773486162,-729.77,0.00020547,2]
[346202229,1734773486171,-500.0,0.00020547,2]
[346202230,1734773486181,-500.0,0.00020547,2]
[346202231,1734773486191,-500.0,0.00020547,2]
[346202232,1734773486202,-500.0,0.00020547,2]
[346202233,1734773486211,-834.73,0.00020547,2]
[346202234,1734773486220,-702.21,0.00020547,2]
[346202235,1734773486231,-500.0,0.00020547,2]
[346202236,1734773486243,-500.0,0.00020547,2]
[346202237,1734773486253,-769.61,0.00020547,2]
[346202238,1734773486262,-500.0,0.00020547,2]
[346202239,1734773486274,-500.0,0.00020547,2]
[346202240,1734773486285,-500.0,0.00020547,2]
[346202241,1734773486294,-1002.7,0.00020547,2]
[346202242,1734773486304,-507.9,0.00020547,2]
[346202243,1734773486313,-500.0,0.00020547,2]
[346202244,1734773486322,-500.0,0.00020547,2]
[346202245,1734773486332,-905.36,0.00020547,2]
[346202246,1734773486341,-500.0,0.00020547,2]
[346202247,1734773486351,-500.0,0.00020547,2]
[346202248,1734773486360,-500.0,0.00020547,2]
[346202249,1734773486370,-500.0,0.00020547,2]
[346202250,1734773486379,-685.89,0.00020547,2]
[346202251,1734773486388,-847.86,0.00020547,2]
[346202252,1734773486398,-500.0,0.00020547,2]
[346202253,1734773486407,-902.93,0.00020547,2]
[346202254,1734773486416,-596.7,0.00020547,2]
[346202255,1734773486427,-500.0,0.00020547,2]
[346202256,1734773486437,-500.0,0.00020547,2]
[346202257,1734773486446,-500.0,0.00020547,2]
[346202258,1734773486455,-1374.67,0.00020547,2]
[346202259,1734773486465,-506.13,0.00020547,2]
[346202260,1734773486475,-547.02,0.00020547,2]
[346202261,1734773486485,-500.0,0.00020547,2]
[346202262,1734773486494,-500.0,0.00020547,2]
[346202263,1734773486503,-1494.46,0.00020547,2]
[346202264,1734773486512,-500.0,0.00020547,2]
[346202265,1734773486522,-500.0,0.00020547,2]
[346202266,1734773486532,-634.46,0.00020547,2]
[346202267,1734773486541,-813.36,0.00020547,2]
[346202268,1734773486551,-500.0,0.00020547,2]
[346202269,1734773486560,-1810.25,0.00020547,2]
[346202270,1734773486569,-739.39,0.00020547,2]
[346202271,1734773486579,-500.0,0.00020547,2]
[346202272,1734773486588,-500.0,0.00020547,2]
[346202273,1734773486597,-500.0,0.00020547,2]
[346202274,1734773486606,-907.54,0.00020547,2]
[346202275,1734773486615,-589.82,0.00020547,2]
[346202276,1734773486626,-500.0,0.00020547,2]
[346202277,1734773486635,-1931.15,0.00020547,2]
[346202278,1734773486645,-527.82,0.00020547,2]
[346202279,1734773486654,-500.0,0.00020547,2]
[346202280,1734773486663,-614.04,0.00020547,2]
[346202281,1734773486672,-500.0,0.00020547,2]
[346202282,1734773486682,-500.0,0.00020547,2]
[346202283,1734773486691,-800.36,0.00020547,2]
[346202284,1734773486700,-427.45517847,0.00020547,2]
[346202285,1734773486710,-500.0,0.00020547,2]
[346202286,1734773486719,-500.0,0.00020547,2]
[346202287,1734773486730,-500.0,0.00020547,2]
[346202288,1734773486739,-500.0,0.00020547,2]
[346202289,1734773486749,-638.02909128,0.00020547,2]
[346202290,1734773486759,-1122.34,0.00020547,2]
[346202291,1734773486768,-814.04,0.00020547,2]
[346202292,1734773486780,-500.0,0.00020547,2]
[346202293,1734773486789,-552.47,0.00020547,2]
[346202294,1734773486799,-594.91,0.00020547,2]
[346202295,1734773486808,-500.0,0.00020547,2]
[346202296,1734773486818,-1064.96,0.00020547,2]
[346202297,1734773486827,-500.0,0.00020547,2]
[346202298,1734773486837,-500.0,0.00020547,2]
[346202299,1734773486847,-870.97,0.00020547,2]
[346202300,1734773486858,-500.0,0.00020547,2]
[346202301,1734773486867,-500.0,0.00020547,2]
[346202302,1734773486877,-500.0,0.00020547,2]
[346202303,1734773486886,-932.63,0.00020547,2]
[346202304,1734773486895,-500.0,0.00020547,2]
[346202305,1734773486905,-500.0,0.00020547,2]
[346202306,1734773486914,-551.58,0.00020547,2]
[346202307,1734773486923,-500.0,0.00020547,2]
[346202308,1734773486932,-621.57,0.00020547,2]
[346202309,1734773486941,-500.0,0.00020547,2]
[346202310,1734773486951,-500.0,0.00020547,2]
[346202311,1734773486960,-500.0,0.00020547,2]
[346202312,1734773486969,-571.12,0.00020547,2]
[346202313,1734773486979,-608.52,0.00020547,2]
[346202314,1734773486989,-500.0,0.00020547,2]
[346202315,1734773486998,-504.83,0.00020547,2]
[346202316,1734773487008,-500.0,0.00020547,2]
[346202317,1734773487018,-500.0,0.00020547,2]
[346202318,1734773487033,-500.0,0.00020547,2]
[346202319,1734773487043,-1533.28,0.00020547,2]
[346202320,1734773487052,-515.65,0.00020547,2]
[346202321,1734773487061,-500.0,0.00020547,2]
[346202322,1734773487071,-500.0,0.00020547,2]
[346202323,1734773487081,-500.0,0.00020547,2]
[346202324,1734773487090,-500.0,0.00020547,2]
[346202325,1734773487100,-1776.17307,0.00020547,2]
[346202326,1734773487110,-500.0,0.00020547,2]
[346202327,1734773487119,-687.23,0.00020547,2]
[346202328,1734773487128,-500.0,0.00020547,2]
[346202329,1734773487138,-668.01,0.00020547,2]
[346202330,1734773487147,-500.0,0.00020547,2]
[346202331,1734773487156,-500.0,0.00020547,2]
[346202332,1734773487165,-500.0,0.00020547,2]
[346202333,1734773487174,-528.77,0.00020547,2]
[346202334,1734773487184,-784.71,0.00020547,2]
[346202335,1734773487193,-500.0,0.00020547,2]
[346202336,1734773487203,-500.0,0.00020547,2]
[346202337,1734773487212,-590.41469649,0.00020547,2]
[346202338,1734773487222,-500.0,0.00020547,2]
[346202339,1734773487232,-500.0,0.00020547,2]
[346202340,1734773487244,-1271.57,0.00020547,2]
[346202341,1734773487253,-500.0,0.00020547,2]
[346202342,1734773487263,-500.0,0.00020547,2]
[346202343,1734773487272,-1374.17,0.00020547,2]
[346202344,1734773487285,-1127.2,0.00020547,2]
[346202345,1734773487295,-852.34,0.00020547,2]
[346202346,1734773487304,-2741.171611,0.00020547,2]
[346202347,1734773487315,-504.93,0.00020547,2]
[346202348,1734773487324,-500.0,0.00020547,2]
[346202349,1734773487334,-500.0,0.00020547,2]
[346202350,1734773487343,-500.0,0.00020547,2]
[346202351,1734773487353,-886.06,0.00020547,2]
[346202352,1734773487362,-500.0,0.00020547,2]
[346202353,1734773487373,-736.41,0.00020547,2]